bitfinex/quotes_ETHUSD_20251127
["timestamp","ask_amount","ask_price","bid_price","bid_amount"]
[1764251264590,0.211,2997.1,2997.0,0.9839]
[1764251264801,0.52264859,2997.1,2997.0,0.9839]
[1764251265227,0.31164859,2997.1,2997.0,7.12864838]
[1764251265510,0.52264859,2997.1,2997.0,7.12864838]
[1764251265713,0.52264859,2997.1,2997.0,4.32057]
[1764251269409,0.52264859,2997.1,2997.0,0.9839]
[1764251271718,7.21288564,2997.1,2997.0,0.001]
[1764251272013,2.58789068,2997.1,2997.0,0.001]
[1764251272252,2.04229068,2997.1,2997.0,0.001]
[1764251272405,1.2482427,2997.1,2997.0,0.001]
[1764251272913,1.0372427,2997.1,2997.0,0.001]
[1764251273116,1.2482427,2997.1,2997.0,0.4982]
[1764251273290,1.2482427,2997.1,2997.0,0.9839]
[1764251273823,0.31164859,2997.1,2997.0,0.9839]
[1764251274118,0.52264859,2997.1,2997.0,0.9839]
[1764251275029,0.52264859,2997.1,2997.0,4.32057]
[1764251275586,0.31164859,2997.1,2997.0,4.32057]
[1764251275822,0.52264859,2997.1,2997.0,0.9839]
[1764251276234,0.52264859,2997.1,2997.0,4.32057]
[1764251276536,0.52184859,2997.1,2997.0,0.9839]
[1764251278107,0.52184859,2997.1,2997.0,4.32057]
[1764251278554,0.52184859,2997.1,2997.0,0.9839]
[1764251279611,0.211,2997.1,2997.0,0.9839]
[1764251280936,0.211,2997.1,2997.0,0.4982]
[1764251282841,0.3199,2997.1,2997.0,0.001]
[1764251283043,0.211,2997.1,2997.0,0.001]
[1764251283341,0.211,2997.1,2997.0,4.32057]
[1764251283646,0.002,2997.3,2997.0,4.32057]
[1764251283852,0.002,2997.3,2997.2,0.4972]
[1764251284015,0.213,2997.3,2997.2,0.4972]
[1764251284215,0.3219,2997.3,2997.0,0.4867]
[1764251285067,0.213,2997.3,2997.0,3.33766568]
[1764251285343,0.213,2997.3,2997.0,3.82336568]
[1764251285542,0.213,2997.3,2997.0,0.001]
[1764251285724,0.213,2997.3,2997.1,0.4857]
[1764251285922,0.002,2997.3,2997.2,0.4972]
[1764251286121,0.213,2997.3,2997.2,0.4972]
[1764251286323,0.213,2997.3,2997.2,3.99183637]
[1764251286538,0.213,2997.3,2997.2,4.41359668]
[1764251287042,0.213,2997.3,2997.2,4.81910068]
[1764251287343,0.002,2997.3,2997.2,4.81910068]
[1764251287549,0.002,2997.3,2997.2,8.15554803]
[1764251288325,0.002,2997.3,2997.2,5.14661166]
[1764251288530,0.31381111,2997.3,2997.2,5.14661166]
[1764251290446,0.31381111,2997.3,2997.2,0.42176031]
[1764251290636,0.31381111,2997.3,2997.2,0.9902]
[1764251291243,0.31381111,2997.3,2997.2,4.03250084]
[1764251291730,0.31381111,2997.3,2997.2,7.33558372]
[1764251292351,0.31381111,2997.3,2997.2,4.32664735]
[1764251292737,0.31381111,2997.3,2997.2,3.33644735]
[1764251292932,0.31381111,2997.3,2997.2,4.32664735]
[1764251293932,0.31381111,2997.3,2997.2,3.82904735]
[1764251294321,0.31381111,2997.3,2997.2,4.32664735]
[1764251296354,0.31381111,2997.3,2997.2,8.15450843]
[1764251296652,0.31381111,2997.3,2997.2,8.12114396]
[1764251298344,0.52481111,2997.3,2997.2,8.52664796]
[1764251298652,0.31381111,2997.3,2997.2,8.52664796]
[1764251300441,0.31381111,2997.3,2997.2,5.51771159]
[1764251300442,0.31301111,2997.3,2997.2,5.51771159]
[1764251304773,0.31301111,2997.3,2997.2,9.31771159]
[1764251305065,0.31301111,2997.3,2997.2,5.51771159]
[1764251305770,0.31301111,2997.3,2997.2,4.73215135]
[1764251308878,0.31301111,2997.3,2997.2,3.74195135]
[1764251309181,0.42191111,2997.3,2997.2,3.74195135]
[1764251309741,0.42191111,2997.3,2997.2,3.33644735]
[1764251309972,0.31301111,2997.3,2997.2,3.33644735]
[1764251311169,0.31301111,2997.3,2997.1,6.67411368]
[1764251311367,0.31181111,2997.2,2997.1,3.74305901]
[1764251311678,0.42391111,2997.2,2997.1,3.74305901]
[1764251311850,0.42391111,2997.2,2997.1,3.33755501]
[1764251312048,0.42391111,2997.2,2997.1,0.001]
[1764251312279,0.85741111,2997.2,2997.1,0.001]
[1764251313173,0.42391111,2997.2,2997.1,0.001]
[1764251314354,0.81066586,2997.2,2997.1,0.001]
[1764251315382,1.02166586,2997.2,2997.1,0.001]
[1764251318356,0.90956586,2997.2,2997.1,0.4936]
[1764251318587,0.31181111,2997.2,2997.1,1.1828]
[1764251318786,0.52281111,2997.2,2997.1,1.1828]
[1764251318959,0.52281111,2997.2,2997.1,0.6852]
[1764251319888,0.52281111,2997.2,2997.1,1.1828]
[1764251320085,0.52281111,2997.2,2997.1,4.51935867]
[1764251320276,0.31181111,2997.2,2997.1,4.51935867]
[1764251320476,0.52281111,2997.2,2997.1,4.55272425]
[1764251321191,0.52281111,2997.2,2997.1,4.51935867]
[1764251322295,0.52281111,2997.2,2997.1,4.55272425]
[1764251323169,0.52281111,2997.2,2997.1,4.51935867]
[1764251323492,0.52281111,2997.2,2997.1,3.83015867]
[1764251324185,0.52201111,2997.2,2997.1,3.83015867]
[1764251324899,0.52201111,2997.2,2997.1,4.31885867]
[1764251326599,0.52201111,2997.2,2997.1,4.54002425]
[1764251328618,0.63091111,2997.2,2997.1,3.33755867]
[1764251328771,0.52201111,2997.2,2997.1,3.80805867]
[1764251329185,0.52201111,2997.2,2997.1,4.29675867]
[1764251329386,0.52201111,2997.2,2997.1,3.80805867]
[1764251329586,0.52201111,2997.2,2997.1,4.29675867]
[1764251330379,0.31101111,2997.2,2997.1,4.51792425]
[1764251330589,0.52201111,2997.2,2997.1,5.57111114]
[1764251331705,0.31101111,2997.2,2997.1,4.89461114]
[1764251332005,0.63091111,2997.2,2996.4,6.67467626]
[1764251332172,0.3199,2997.2,2996.4,6.67467626]
[1764251332368,0.3199,2997.2,2996.5,3.33722676]
[1764251333603,0.3199,2997.2,2996.6,0.03337115]
[1764251333973,0.211,2997.2,2997.1,0.6583]
[1764251334176,0.0012,2997.3,2997.2,0.405504]
[1764251334370,0.0012,2997.3,2997.2,2.97260448]
[1764251334609,0.002,2997.6,2997.2,2.55426092]
[1764251334772,0.002,2997.6,2997.5,4.61053448]
[1764251335196,0.002,2997.6,2997.5,8.4353479]
[1764251335498,0.002,2997.6,2997.5,9.4952898]
[1764251336003,0.002,2997.6,2997.5,8.4353479]
[1764251339011,0.002,2997.6,2997.5,4.53220753]
[1764251339012,0.31291443,2997.6,2997.5,4.53220753]
[1764251339308,0.31291443,2997.6,2997.5,8.0298439]
[1764251339510,0.31291443,2997.6,2997.5,8.4353479]
[1764251340328,0.31291443,2997.6,2997.5,4.46721153]
[1764251340607,0.31291443,2997.6,2997.5,4.21211742]
[1764251340785,0.31291443,2997.6,2997.5,4.70081742]
[1764251341188,0.31291443,2997.6,2997.5,4.21211742]
[1764251341493,1.04711443,2997.6,2997.0,6.67334]
[1764251341686,0.31091443,2997.5,2997.0,6.67334]
[1764251341892,0.2679,2997.1,2997.0,3.33667]
[1764251342099,0.57881443,2997.1,2996.6,6.67416049]
[1764251342414,0.31091443,2997.0,2996.6,10.01127588]
[1764251342712,0.31091443,2996.9,2996.8,0.405504]
[1764251343209,0.31091443,2996.9,2996.8,1.364704]
[1764251343717,0.31091443,2996.9,2996.8,4.17234797]
[1764251344091,0.31091443,2996.9,2996.8,7.54260957]
[1764251344385,0.31091443,2996.9,2996.8,7.50924065]
[1764251344707,0.31091443,2996.9,2996.8,9.33339738]
[1764251345308,0.31091443,2996.9,2996.8,13.13339738]
[1764251347003,0.002,2997.6,2996.8,20.53277685]
[1764251347208,0.002,2997.6,2997.5,0.4705]
[1764251347405,0.31278264,2997.6,2997.5,0.50386113]
[1764251347918,0.31198264,2997.6,2997.5,0.50386113]
[1764251348496,0.31198264,2997.6,2997.5,3.83997455]
[1764251350519,0.57778264,2997.6,2997.5,0.03336113]
[1764251350724,1.04618264,2997.6,2997.2,0.405504]
[1764251350920,0.31078264,2997.5,2997.2,0.405504]
[1764251351131,0.31078264,2997.4,2997.3,3.32770733]
[1764251351824,0.31078264,2997.4,2997.3,3.29434397]
[1764251351994,0.31078264,2997.4,2997.3,3.74444397]
[1764251353019,0.31078264,2997.4,2997.3,10.88078]
[1764251353723,0.31078264,2997.4,2997.3,10.39408]
[1764251353923,0.0012,2997.6,2997.5,1.13109811]
[1764251354122,0.0012,2997.6,2997.5,7.22984718]
[1764251354330,0.0012,2997.6,2997.5,7.68318605]
[1764251354507,0.0012,2997.6,2997.5,11.48318605]
[1764251354709,0.0012,2997.6,2997.5,14.11007237]
[1764251355109,0.0012,2997.6,2997.5,17.44618579]
[1764251355509,0.0012,2997.6,2997.5,17.57976111]
[1764251357402,0.0012,2997.6,2997.5,17.58076111]
[1764251361514,0.002,2997.9,2997.6,0.405504]
[1764251361710,0.002,2998.2,2998.0,0.405504]
[1764251361919,0.002,2998.2,2998.1,3.87100242]
[1764251362116,0.002,2998.2,2998.1,6.67864639]
[1764251362305,0.002,2998.2,2998.1,10.46743772]
[1764251362700,0.4984,2998.2,2998.1,6.54859375]
[1764251363404,0.002,2998.2,2998.1,6.99869375]
[1764251364512,0.4955,2998.2,2998.1,6.54859375]
[1764251365016,0.4955,2998.2,2998.1,10.34659375]
[1764251365218,0.7133,2998.2,2998.1,10.34659375]
[1764251365735,0.002,2998.2,2998.1,15.67210896]
[1764251365921,0.31306632,2998.2,2998.1,15.67210896]
[1764251366129,0.31306632,2998.2,2998.1,15.80566867]
[1764251368739,0.002,2998.2,2998.1,15.84506278]
[1764251369754,0.002,2998.2,2998.1,7.13344578]
[1764251369755,1.02147556,2998.2,2998.1,7.13344578]
[1764251370711,1.02147556,2998.2,2998.1,7.53894978]
[1764251370931,1.02147556,2998.2,2998.1,7.13344578]
[1764251371523,1.02067556,2998.2,2998.1,7.13344578]
[1764251373512,1.02067556,2998.2,2998.1,3.798]
[1764251376850,1.02067556,2998.2,2998.0,3.33549846]
[1764251377143,1.02237556,2998.1,2998.0,3.36885403]
[1764251377393,0.31097556,2998.1,2998.0,14.4854032]
[1764251377720,0.31097556,2998.1,2998.0,14.9355032]
[1764251378121,0.31097556,2998.1,2998.0,15.4222032]
[1764251379421,0.31097556,2998.1,2998.0,12.12785923]
[1764251380141,0.31097556,2998.1,2998.0,12.61715923]
[1764251380747,0.31097556,2998.1,2998.0,15.4248032]
[1764251380954,0.31097556,2998.1,2998.0,12.61715923]
[1764251381761,0.31097556,2998.1,2998.0,15.4248032]
[1764251382261,0.31097556,2998.1,2998.0,12.61715923]
[1764251382457,0.31097556,2998.1,2998.0,15.4248032]
[1764251384064,0.31097556,2998.1,2998.0,16.46137287]
[1764251385134,0.31097556,2998.1,2998.0,12.66337287]
[1764251388168,0.0012,2998.2,2998.1,1.13109811]
[1764251388351,0.0012,2998.2,2998.1,4.51217645]
[1764251388876,0.0012,2998.2,2998.1,4.64572234]
[1764251389674,0.0012,2998.2,2998.1,8.01452257]
[1764251389852,0.002,2998.5,2998.1,11.3166139]
[1764251390165,0.002,2998.5,2998.2,13.11710506]
[1764251392040,0.002,2998.5,2998.2,15.47763959]
[1764251392246,0.002,2998.5,2998.2,15.96313959]
[1764251392669,0.002,2998.5,2998.2,16.45243959]
[1764251392970,0.4312,2998.7,2998.6,3.21314797]
[1764251393343,0.7032,2998.7,2998.6,3.21314797]
[1764251394178,0.7032,2998.7,2998.6,6.54803758]
[1764251395576,0.7024,2998.7,2998.6,10.34603758]
[1764251396374,0.272,2998.7,2998.6,10.34603758]
[1764251397445,0.6565,2998.7,2998.6,10.34603758]
[1764251399649,0.6565,2998.7,2998.6,9.94053358]
[1764251399850,0.6565,2998.7,2998.3,7.13319818]
[1764251400063,0.2277,2998.4,2998.3,3.33519818]
[1764251400270,0.53940764,2998.4,2998.3,3.33519818]
[1764251400491,1.01210764,2998.4,2998.3,3.33519818]
[1764251402553,1.01210764,2998.4,2998.0,10.08345355]
[1764251402755,0.4614,2998.1,2998.0,6.74789652]
[1764251402955,0.77310764,2998.1,2998.0,6.74789652]
[1764251403182,1.01440764,2998.1,2998.0,6.74789652]
[1764251403605,1.01440764,2998.1,2998.0,0.001]
[1764251403901,0.002,2998.8,2998.0,4.7209062]
[1764251404064,0.002,2998.8,2998.7,0.891004]
[1764251404681,0.1855,2998.8,2998.7,3.7402824]
[1764251405189,0.002,2998.8,2998.7,4.25913018]
[1764251405553,0.1855,2998.8,2998.7,3.7402824]
[1764251405761,0.1855,2998.8,2998.1,6.80383549]
[1764251405762,0.6579,2998.8,2998.1,6.80383549]
[1764251406056,0.4752,2998.7,2998.2,7.07617306]
[1764251406259,0.4752,2998.7,2998.4,3.00583549]
[1764251406579,0.4752,2998.7,2998.5,3.33500083]
[1764251406780,0.4752,2998.7,2998.5,6.67000166]
[1764251406991,0.1837,2998.6,2998.5,3.33500083]
[1764251407359,0.656,2998.6,2998.5,3.33500083]
[1764251408588,0.656,2998.6,2998.4,0.405504]
[1764251408788,0.6589,2998.5,2998.4,0.405504]
[1764251409262,0.1837,2998.5,2998.4,0.405504]
[1764251409900,0.656,2998.5,2998.4,0.405504]
[1764251410792,0.211,2998.7,2998.4,7.0757281]
[1764251410994,0.2025,2998.5,2998.4,3.74061605]
[1764251412059,0.6561,2998.5,2998.4,3.74061605]
[1764251414485,0.6561,2998.5,2998.1,3.33537118]
[1764251414684,0.4642,2998.2,2998.0,0.001]
[1764251414886,0.4642,2998.1,2998.0,0.406504]
[1764251415086,0.4642,2998.1,2998.0,4.204504]
[1764251415607,0.6588,2998.1,2998.0,4.204504]
[1764251416009,0.77649387,2998.1,2998.0,4.204504]
[1764251416988,0.97109387,2998.1,2998.0,7.54006103]
[1764251418185,0.97109387,2998.1,2998.0,3.33655703]
[1764251419095,0.97029387,2998.1,2998.0,0.001]
[1764251419468,0.77569387,2998.1,2998.0,0.001]
[1764251419667,0.97029387,2998.1,2998.0,0.001]
[1764251420094,0.97029387,2998.1,2998.0,3.799]
[1764251420878,0.77569387,2998.1,2998.0,3.799]
[1764251421191,0.97029387,2998.1,2998.0,3.799]
[1764251422419,0.97029387,2998.1,2998.0,7.13455703]
[1764251424872,0.77569387,2998.1,2998.0,7.13455703]
[1764251425086,0.77569387,2998.1,2998.0,3.33655703]
[1764251425394,0.31229387,2998.1,2998.0,3.79585703]
[1764251425580,0.77219387,2998.1,2998.0,3.33655703]
[1764251426501,0.77219387,2998.1,2998.0,0.001]
[1764251428486,0.77219387,2998.1,2998.0,5.800384]
[1764251428487,0.52329387,2998.1,2998.0,5.800384]
[1764251429074,0.31229387,2998.1,2998.0,5.339684]
[1764251429275,0.31229387,2998.1,2998.0,5.800384]
[1764251430373,0.31229387,2998.1,2998.0,6.52597811]
[1764251430597,0.31229387,2998.1,2998.0,9.5307109]
[1764251430779,0.31229387,2998.1,2998.0,9.49735533]
[1764251432792,0.96679387,2998.1,2998.0,4.51620419]
[1764251432986,0.96679387,2998.1,2998.0,6.74679382]
[1764251432987,0.51319387,2998.1,2998.0,6.74679382]
[1764251433371,0.31229387,2998.1,2998.0,7.66679382]
[1764251436279,0.26984117,2998.1,2998.0,7.66679382]
[1764251436479,0.26984117,2998.1,2998.0,7.66279382]
[1764251436996,0.25528224,2998.1,2998.0,7.66279382]
[1764251437192,0.25528224,2998.1,2998.0,8.7588394]
[1764251437909,0.247187,2998.1,2998.0,8.7548394]
[1764251438414,0.247187,2998.1,2998.0,8.7508394]
[1764251438796,0.002,2998.6,2998.0,19.4791046]
[1764251438985,0.89699603,2999.4,2998.0,19.4791046]
[1764251438986,0.10478439,2999.9,2998.8,0.4593]
[1764251439185,0.89899603,3000.1,3000.0,0.4593]
[1764251439186,0.002,3000.1,3000.0,0.4593]
[1764251439415,0.002,3000.1,3000.0,0.4553]
[1764251439625,0.002,3000.1,3000.0,1.33056269]
[1764251440411,0.002,3000.1,3000.0,1.32656269]
[1764251440581,0.002,3000.1,3000.0,5.29088251]
[1764251440781,0.002,3000.1,3000.0,9.75131395]
[1764251440976,0.65727,3001.1,3000.1,1.064204]
[1764251441193,0.65727,3001.1,3000.3,0.4721]
[1764251441390,0.19937,3001.1,3000.1,1.85591933]
[1764251441623,0.4579,3001.0,3000.1,0.72159411]
[1764251441919,0.1122,3000.9,3000.1,0.71759411]
[1764251442334,0.6689,3000.8,3000.1,1.18969411]
[1764251442639,0.6689,3000.8,3000.1,1.18569411]
[1764251442928,0.6681,3000.8,3000.2,6.66622224]
[1764251443094,0.6681,3000.8,3000.2,6.66222224]
[1764251443645,0.4579,3000.7,3000.2,6.65822224]
[1764251444134,0.4579,3000.7,3000.2,6.65422224]
[1764251444295,0.444163,3000.7,3000.2,6.65422224]
[1764251444499,0.43951262,3000.7,3000.2,6.65022224]
[1764251444737,0.43951262,3000.7,3000.2,7.12232224]
[1764251444900,0.43329153,3000.7,3000.2,7.11832224]
[1764251445099,0.1862261,3000.8,3000.2,7.11832224]
[1764251445300,0.1862261,3000.8,3000.2,7.11432224]
[1764251445828,0.1862261,3000.8,3000.2,7.11032224]
[1764251446030,0.1862261,3000.8,3000.2,7.10632224]
[1764251446497,0.17200473,3000.8,3000.2,7.10632224]
[1764251446694,0.17200473,3000.8,3000.2,7.10232224]
[1764251446898,0.62431795,3000.8,3000.2,7.10232224]
[1764251447129,0.62431795,3000.8,3000.2,7.09832224]
[1764251447507,0.62431795,3000.8,3000.2,7.09432224]
[1764251447697,0.61913431,3000.8,3000.2,7.09432224]
[1764251447913,0.6689,3000.8,3000.2,7.09032224]
[1764251448208,0.6689,3000.8,3000.2,10.42343336]
[1764251448413,0.2183,3000.3,3000.2,3.28511112]
[1764251448709,0.2183,3000.3,3000.2,3.28111112]
[1764251448915,0.21445426,3000.3,2999.9,1.13109811]
[1764251449110,0.4555,3000.5,3000.0,0.02933333]
[1764251449635,0.4555,3000.5,3000.0,0.02533333]
[1764251450236,0.4555,3000.5,2999.1,0.18348]
[1764251450237,0.2131,3000.1,2999.1,0.18348]
[1764251450432,0.2162,3000.0,2999.0,10.00333443]
[1764251450736,0.2162,3000.0,2999.5,0.405504]
[1764251450737,0.0052,3000.0,2999.5,0.405504]
[1764251450907,0.1122,3000.9,3000.0,3.33333333]
[1764251450908,0.52035859,3000.2,3000.0,3.33333333]
[1764251451110,0.52035859,3000.2,3000.0,6.69999999]
[1764251451111,0.211,3000.2,3000.0,6.69999999]
[1764251451320,0.73967967,3000.8,3000.0,6.66266666]
[1764251451321,0.211,3000.6,3000.0,6.66266666]
[1764251451518,0.30934905,3000.6,3000.1,4.41761982]
[1764251451721,0.30934905,3000.5,3000.2,0.03333111]
[1764251451921,0.211,3000.8,3000.2,0.02933111]
[1764251452119,0.30931565,3000.8,3000.2,0.02933111]
[1764251452310,0.2254,3000.3,3000.0,6.66266666]
[1764251452511,0.2231,3000.1,3000.0,3.32933333]
[1764251452712,0.32740121,3000.6,3000.0,6.65866666]
[1764251452713,0.78510121,3000.6,3000.0,6.65866666]
[1764251453032,0.76721565,3000.5,3000.0,6.65466666]
[1764251453232,0.01808556,3000.6,2999.7,7.29792729]
[1764251453233,0.30284064,3000.4,2999.8,10.40617071]
[1764251453410,0.4579,3000.6,2999.9,0.03333444]
[1764251453608,0.4579,3000.6,2999.9,0.02933444]
[1764251453811,0.4579,3000.6,2999.8,7.07261514]
[1764251454013,0.6689,3000.7,3000.0,0.405504]
[1764251454227,0.6689,3000.7,2999.9,0.50543444]
[1764251454228,0.6689,3000.7,3000.2,0.405504]
[1764251454538,0.444163,3000.6,3000.0,0.405504]
[1764251454738,0.444163,3000.6,3000.0,0.40238403]
[1764251454931,0.211,3000.7,3000.0,0.87448403]
[1764251455127,0.211,3000.7,3000.1,6.66644444]
[1764251455330,0.211,3001.0,3000.1,15.14994092]
[1764251455534,0.211,3001.0,3000.2,0.4681]
[1764251455924,0.65557511,3001.0,3000.2,0.4641]
[1764251456639,0.65557511,3001.0,3000.2,0.4601]
[1764251456841,0.4579,3000.9,3000.1,13.96398648]
[1764251457140,0.44296056,3000.9,3000.2,0.401504]
[1764251457321,0.44296056,3000.9,2999.8,1.5757935]
[1764251457322,0.44296056,3000.9,3000.3,3.33300003]
[1764251457522,0.44296056,3000.9,3000.3,6.66600006]
[1764251457836,0.44296056,3000.9,3000.4,0.02932888]
[1764251458030,0.64951469,3000.9,3000.3,6.66600006]
[1764251458224,0.64951469,3000.9,3000.3,6.66392306]
[1764251458424,0.2904,3000.4,3000.3,3.32692303]
[1764251458834,0.28339133,3000.4,3000.3,3.32692303]
[1764251459129,0.28339133,3000.4,3000.3,3.72842703]
[1764251459843,0.28339133,3000.4,3000.3,3.32292303]
[1764251460146,0.70119133,3000.4,3000.3,3.32292303]
[1764251460732,0.70119133,3000.4,2999.9,0.72559411]
[1764251461042,0.0042,3000.3,3000.0,0.03333333]
[1764251461243,0.0042,3000.3,3000.1,6.66644444]
[1764251461416,0.0042,3000.3,3000.2,0.03333111]
[1764251462648,0.0042,3000.3,3000.2,6.36803716]
[1764251463242,0.0042,3000.3,3000.2,3.36644223]
[1764251464565,0.0042,3000.3,3000.2,6.16802428]
[1764251465465,0.31499486,3000.3,3000.2,6.16802428]
[1764251465762,0.77289486,3000.3,3000.2,2.83491316]
[1764251466267,0.31499486,3000.3,3000.2,6.16802428]
[1764251466641,0.31079486,3000.3,3000.2,8.96960633]
[1764251466846,0.54739486,3000.3,3000.2,6.13469317]
[1764251467042,0.54739486,3000.3,3000.2,0.03333111]
[1764251467350,1.00299486,3000.3,3000.1,3.33319762]
[1764251467550,0.54959486,3000.2,3000.1,3.33319762]
[1764251467752,1.00309486,3000.2,3000.0,6.66766531]
[1764251467938,0.31529486,3000.1,3000.0,3.33433198]
[1764251468138,0.77319486,3000.1,3000.0,3.33433198]
[1764251469566,0.77319486,3000.1,3000.0,0.001]
[1764251469734,0.98419486,3000.1,3000.0,0.001]
[1764251469934,3.33267241,3000.6,3000.0,0.001]
[1764251469935,0.211,3000.2,3000.0,0.001]
[1764251470269,0.2321,3000.1,3000.0,0.001]
[1764251471941,0.77428876,3000.1,3000.0,0.001]
[1764251473175,0.4431,3000.1,3000.0,0.001]
[1764251474657,0.2321,3000.1,3000.0,0.001]
[1764251474986,0.4431,3000.1,3000.0,0.001]
[1764251476471,0.2321,3000.1,3000.0,0.001]
[1764251476672,0.4431,3000.1,3000.0,0.001]
[1764251478279,3.77862222,3000.1,3000.0,0.001]
[1764251478576,5.57071678,3000.1,3000.0,0.001]
[1764251478744,6.76560334,3000.1,3000.0,0.001]
[1764251478941,6.86827648,3000.1,3000.0,0.001]
[1764251479147,5.67071678,3000.1,3000.0,0.001]
[1764251479370,6.76821327,3000.1,3000.0,0.001]
[1764251479543,5.67071678,3000.1,3000.0,0.001]
[1764251479748,5.69680234,3000.1,3000.0,0.001]
[1764251480468,5.59680234,3000.1,3000.0,0.001]
[1764251480672,5.69680234,3000.1,3000.0,0.001]
[1764251485248,6.59199195,3000.1,3000.0,0.001]
[1764251488090,2.31987562,3000.1,3000.0,0.001]
[1764251488257,0.211,3000.1,3000.0,3.29618205]
[1764251488454,0.2133,3000.1,3000.0,0.001]
[1764251490358,0.2125,3000.1,3000.0,0.001]
[1764251490953,6.96056681,3000.1,3000.0,0.001]
[1764251491158,4.85849331,3000.1,3000.0,0.001]
[1764251491358,4.88457887,3000.1,3000.0,0.001]
[1764251492865,4.98457887,3000.1,3000.0,0.001]
[1764251493590,4.88457887,3000.1,3000.0,0.001]
[1764251493884,4.98457887,3000.1,3000.0,0.001]
[1764251494296,5.87976848,3000.1,3000.0,0.001]
[1764251494472,4.98457887,3000.1,3000.0,0.001]
[1764251495094,5.29562577,3000.1,3000.0,0.001]
[1764251495558,4.96662577,3000.1,3000.0,0.001]
[1764251495754,5.29642577,3000.1,3000.0,0.001]
[1764251498258,6.39392226,3000.1,3000.0,0.001]
[1764251498460,6.49392226,3000.1,3000.0,0.001]
[1764251499766,6.49592226,3000.1,3000.0,0.001]
[1764251501986,6.39592226,3000.1,3000.0,0.001]
[1764251502187,6.49592226,3000.1,3000.0,0.001]
[1764251503396,6.39592226,3000.1,3000.0,0.001]
[1764251503598,6.49592226,3000.1,3000.0,0.001]
[1764251504410,5.29842577,3000.1,3000.0,0.001]
[1764251505024,5.19842577,3000.1,3000.0,0.001]
[1764251505399,5.29842577,3000.1,3000.0,0.001]
[1764251506188,5.19842577,3000.1,3000.0,0.001]
[1764251506582,5.29842577,3000.1,3000.0,0.001]
[1764251506895,4.98742577,3000.1,3000.0,0.001]
[1764251507103,5.29842577,3000.1,3000.0,0.001]
[1764251507405,5.19842577,3000.1,3000.0,0.001]
[1764251507710,4.96862577,3000.1,3000.0,0.001]
[1764251508392,5.06862577,3000.1,3000.0,0.001]
[1764251508906,5.19842577,3000.1,3000.0,0.001]
[1764251509110,5.29842577,3000.1,3000.0,0.001]
[1764251510406,5.19842577,3000.1,3000.0,0.001]
[1764251510583,5.29842577,3000.1,3000.0,0.001]
[1764251510783,5.19842577,3000.1,3000.0,0.001]
[1764251511719,5.29842577,3000.1,3000.0,0.001]
[1764251513410,5.19842577,3000.1,3000.0,0.001]
[1764251513618,5.29842577,3000.1,3000.0,0.001]
[1764251514186,5.19762577,3000.1,3000.0,0.001]
[1764251514387,5.08662577,3000.1,3000.0,0.001]
[1764251514588,5.06782577,3000.1,3000.0,0.001]
[1764251515295,4.96782577,3000.1,3000.0,0.001]
[1764251515692,5.06782577,3000.1,3000.0,0.001]
[1764251515913,4.96782577,3000.1,3000.0,0.001]
[1764251516097,5.06782577,3000.1,3000.0,0.001]
[1764251516506,4.96782577,3000.1,3000.0,0.001]
[1764251516712,5.06782577,3000.1,3000.0,0.001]
[1764251518212,4.96632577,3000.1,3000.0,0.4548]
[1764251518724,4.75532577,3000.1,3000.0,0.4548]
[1764251518883,4.60894879,3000.1,3000.0,0.4548]
[1764251519287,4.60894879,3000.1,3000.0,0.9313]
[1764251519288,0.33913246,3000.1,3000.0,0.9313]
[1764251519516,0.3130469,3000.1,3000.0,0.9313]
[1764251519687,0.5240469,3000.1,3000.0,4.26463333]
[1764251519888,0.5240469,3000.1,3000.0,4.7728554]
[1764251520090,0.5240469,3000.1,3000.0,8.10618873]
[1764251520420,0.5240469,3000.1,3000.0,0.9313]
[1764251520597,4.75968944,3000.1,3000.0,0.001]
[1764251520794,4.58526323,3000.1,3000.0,0.001]
[1764251520997,5.78529032,3000.1,3000.0,0.001]
[1764251521317,2.16470676,3000.1,3000.0,0.4548]
[1764251521498,6.78327165,3000.1,3000.0,0.001]
[1764251521700,6.75718609,3000.1,3000.0,0.001]
[1764251522418,6.44456388,3000.1,3000.0,0.001]
[1764251522602,1.95370676,3000.1,3000.0,0.9313]
[1764251523122,0.90224335,3000.1,3000.0,3.73288205]
[1764251523293,0.002,3000.1,3000.0,3.73288205]
[1764251523487,0.52564382,3000.1,3000.0,3.73288205]
[1764251523717,0.213,3000.1,3000.0,3.73288205]
[1764251524019,0.213,3000.1,3000.0,4.10617026]
[1764251524187,0.002,3000.1,3000.0,4.10617026]
[1764251524393,0.002,3000.1,3000.0,10.24108564]
[1764251524729,0.211,3000.7,3000.1,1.20209411]
[1764251524906,0.211,3000.7,3000.6,0.4538]
[1764251525310,0.211,3000.7,3000.6,0.9303]
[1764251525709,0.52356832,3000.7,3000.6,3.93098963]
[1764251525911,0.52356832,3000.7,3000.6,4.32408859]
[1764251526625,0.52356832,3000.7,3000.6,7.65675538]
[1764251528218,0.31256832,3000.7,3000.6,4.32408859]
[1764251528416,0.52356832,3000.7,3000.6,7.65675538]
[1764251528800,0.31256832,3000.7,3000.6,7.65675538]
[1764251530096,0.002,3001.1,3000.7,0.405504]
[1764251530297,0.002,3001.1,3001.0,1.61279811]
[1764251530599,0.002,3001.1,3001.0,4.9450207]
[1764251530798,0.002,3001.1,3001.0,5.4278207]
[1764251533324,0.002,3001.6,3001.0,12.09226588]
[1764251533610,0.002,3001.6,3001.4,3.68088963]
[1764251533807,0.002,3001.6,3001.4,4.53177859]
[1764251534430,0.002,3001.6,3001.4,7.86355709]
[1764251537410,0.002,3001.6,3001.4,4.86286746]
[1764251537605,0.002,3001.6,3001.4,7.86355709]
[1764251538052,0.0012,3001.5,3001.4,7.86355709]
[1764251539165,0.0012,3001.5,3001.4,7.86455709]
[1764251539663,0.002,3001.8,3001.5,1.61279811]
[1764251539854,0.002,3001.8,3001.7,4.20798374]
[1764251540064,0.75167967,3003.1,3001.8,0.72559411]
[1764251540235,0.21018556,3003.2,3002.9,3.00068963]
[1764251540430,0.42118556,3003.2,3002.9,3.00068963]
[1764251540737,0.42118556,3003.2,3002.7,0.6813]
[1764251540942,0.42118556,3003.2,3002.8,0.4828]